bitfinex/quotes_SOLUSD_20251226
["timestamp","ask_amount","ask_price","bid_price","bid_amount"]
[1766747077022,4.07814098,123.58,123.55,0.69]
[1766747082330,0.68,123.58,123.55,0.69]
[1766747082529,4.07814098,123.58,123.55,0.69]
[1766747083645,0.66,123.57,123.55,0.69]
[1766747085853,0.66,123.57,123.54,0.66]
[1766747093778,2.83533696,123.57,123.54,0.66]
[1766747094682,0.72,123.56,123.54,0.66]
[1766747094980,0.72,123.56,123.54,8.7544848]
[1766747098480,0.72,123.56,123.54,0.66]
[1766747101476,2.17533696,123.58,123.55,0.66]
[1766747101656,2.89533696,123.58,123.55,0.66]
[1766747101865,0.72,123.58,123.55,0.66]
[1766747104684,2.89533696,123.58,123.55,0.66]
[1766747105181,0.72,123.57,123.55,0.66]
[1766747107866,0.72,123.57,123.54,0.66]
[1766747108363,2.89533696,123.57,123.54,0.66]
[1766747108564,0.72,123.56,123.54,0.66]
[1766747111484,2.17533696,123.58,123.54,8.09448906]
[1766747111693,0.72,123.57,123.55,0.66]
[1766747112387,0.72,123.57,123.54,8.09448906]
[1766747112568,0.72,123.57,123.54,8.75448906]
[1766747115593,0.72,123.57,123.55,0.68]
[1766747118303,0.72,123.57,123.54,8.77448906]
[1766747118480,2.89533696,123.57,123.54,0.68]
[1766747119608,0.72,123.57,123.54,8.77454397]
[1766747122210,0.68,123.61,123.56,0.68]
[1766747122404,7.64048989,123.6,123.56,0.68]
[1766747122597,20.22429953,123.62,123.56,0.68]
[1766747122598,0.68,123.58,123.56,0.68]
[1766747122908,0.68,123.58,123.55,14.76]
[1766747122909,0.68,123.58,123.55,15.44]
[1766747123281,0.68,123.58,123.56,0.68]
[1766747123693,2.85533696,123.59,123.56,0.68]
[1766747124094,0.68,123.59,123.56,0.68]
[1766747124685,2.85533696,123.59,123.56,8.77300746]
[1766747124883,0.68,123.59,123.56,8.77300746]
[1766747126817,10.26559448,123.61,123.56,8.09300746]
[1766747127009,5.46009996,123.6,123.56,8.09300746]
[1766747128408,7.63543692,123.6,123.56,8.09300746]
[1766747128621,2.17533696,123.6,123.56,8.09300746]
[1766747130298,2.17533696,123.59,123.56,8.09300746]
[1766747138120,2.17533696,123.59,123.55,22.85376652]
[1766747139198,2.17533696,123.6,123.55,25.02910348]
[1766747140829,0.68,123.59,123.56,8.77304701]
[1766747142236,2.85533696,123.59,123.56,8.77304701]
[1766747143330,0.66,123.58,123.56,0.68]
[1766747144307,2.83533696,123.59,123.56,0.68]
[1766747147232,0.66,123.59,123.56,0.68]
[1766747156156,3.3979227,123.59,123.56,0.68]
[1766747156367,0.66,123.57,123.54,8.79429596]
[1766747158234,0.66,123.58,123.54,8.09429596]
[1766747158434,0.66,123.56,123.54,8.79429596]
[1766747161162,3.3979227,123.57,123.54,8.79429596]
[1766747161376,4.0579227,123.57,123.54,8.79429596]
[1766747162069,3.3979227,123.57,123.54,8.79429596]
[1766747162244,0.66,123.56,123.54,8.09429596]
[1766747162550,0.66,123.56,123.54,8.79429596]
[1766747162744,0.66,123.54,123.52,0.2]
[1766747162965,4.0579227,123.55,123.52,0.9]
[1766747163162,0.66,123.55,123.52,0.9]
[1766747164270,0.66,123.55,123.52,8.99583537]
[1766747165356,4.0579227,123.55,123.52,8.99583537]
[1766747165656,0.66,123.55,123.52,8.99583537]
[1766747166759,4.0579227,123.55,123.52,8.99583537]
[1766747169358,4.0579227,123.55,123.52,0.9]
[1766747169876,0.66,123.55,123.52,0.9]
[1766747170172,4.0579227,123.55,123.52,0.9]
[1766747180180,3.3979227,123.54,123.52,0.9]
[1766747182182,3.3979227,123.53,123.52,0.9]
[1766747185286,3.3979227,123.53,123.52,0.2]
[1766747186583,1.7179227,123.53,123.52,0.44]
[1766747190686,3.3979227,123.53,123.52,0.44]
[1766747192894,3.3979227,123.53,123.51,29.60659916]
[1766747196898,3.3979227,123.52,123.51,29.60659916]
[1766747198496,3.3979227,123.53,123.51,29.60659916]
[1766747208520,8.09344793,123.56,123.51,29.60659916]
[1766747208696,3.3979227,123.53,123.51,29.60659916]
[1766747210412,4.1079227,123.54,123.51,29.60659916]
[1766747210627,3.3979227,123.56,123.51,29.60659916]
[1766747210922,4.1079227,123.57,123.51,114.74579787]
[1766747211124,4.1079227,123.59,123.54,10.43767296]
[1766747211411,3.3979227,123.58,123.55,14.76]
[1766747212609,3.3979227,123.58,123.56,8.09323405]
[1766747214017,2.17507662,123.58,123.56,8.09323405]
[1766747214417,0.71,123.59,123.56,8.09323405]
[1766747214721,2.17507662,123.58,123.56,8.09323405]
[1766747215814,28.31374503,123.62,123.57,10.43767296]
[1766747215815,0.71,123.62,123.57,10.43767296]
[1766747216016,2.17507662,123.61,123.58,14.76]
[1766747216625,0.71,123.62,123.58,14.76]
[1766747216834,2.17507662,123.61,123.58,14.76]
[1766747217714,2.17507662,123.61,123.59,8.09126952]
[1766747219307,2.17507662,123.62,123.59,8.09126952]
[1766747219508,8.08740736,123.65,123.58,34.98980122]
[1766747219509,2.17507662,123.6,123.58,8.09168753]
[1766747219821,0.71,123.62,123.59,14.76]
[1766747220023,2.17507662,123.6,123.59,14.76]
[1766747220205,0.71,123.62,123.58,8.09168753]
[1766747220398,2.17507662,123.59,123.57,41.37740192]
[1766747221133,2.17507662,123.59,123.58,8.09192425]
[1766747221314,2.17507662,123.59,123.57,33.28508032]
[1766747223236,2.17507662,123.59,123.58,8.09192425]
[1766747224836,2.88507662,123.59,123.57,26.61745053]
[1766747225011,2.17507662,123.58,123.54,81.73560569]
[1766747225215,2.17507662,123.56,123.55,8.08895417]
[1766747225429,2.17507662,123.56,123.54,61.5]
[1766747225633,2.17507662,123.55,123.54,71.93767296]
[1766747225816,2.17507662,123.55,123.53,3.23821088]
[1766747226006,2.17507662,123.55,123.53,64.73821088]
[1766747226212,0.71,123.58,123.54,8.09433254]
[1766747226434,2.17507662,123.55,123.54,8.09433254]
[1766747226635,2.17507662,123.56,123.54,8.09433254]
[1766747228237,2.17507662,123.56,123.54,16.18566301]
[1766747233054,2.17507662,123.55,123.54,16.18566301]
[1766747233347,2.17507662,123.55,123.54,8.09433254]
[1766747234348,2.17507662,123.55,123.53,20.70357823]
[1766747235658,2.17507662,123.55,123.54,8.09433254]
[1766747235849,2.17507662,123.55,123.53,20.70357823]
[1766747236955,2.17507662,123.55,123.54,8.09433254]
[1766747237152,2.17507662,123.55,123.53,20.70357823]
[1766747239164,2.17507662,123.55,123.54,8.09433254]
[1766747239353,2.17507662,123.55,123.53,20.70357823]
[1766747240965,2.17507662,123.55,123.54,8.09433254]
[1766747241258,2.17507662,123.55,123.53,20.70357823]
[1766747242968,2.17507662,123.55,123.54,8.09433254]
[1766747243139,2.17507662,123.55,123.53,20.70357823]
[1766747244565,2.17507662,123.55,123.54,8.09433254]
[1766747244768,2.17507662,123.55,123.53,20.70357823]
[1766747245347,2.85507662,123.55,123.53,20.70357823]
[1766747246367,2.17507662,123.55,123.54,8.09433254]
[1766747248565,2.85507662,123.56,123.54,8.09433254]
[1766747248756,8.0907888,123.6,123.54,8.53433254]
[1766747248941,2.17507662,123.57,123.54,16.62560206]
[1766747250747,2.17507662,123.56,123.54,16.62560206]
[1766747251564,0.68,123.57,123.54,16.62560206]
[1766747251565,8.09024568,123.61,123.54,36.86196275]
[1766747251773,2.17507662,123.58,123.55,0.71]
[1766747251968,2.17507662,123.58,123.55,82.43241434]
[1766747252885,2.17507662,123.58,123.56,8.09323405]
[1766747253873,2.85507662,123.58,123.56,8.09323405]
[1766747255377,0.68,123.58,123.56,8.09323405]
[1766747255575,2.85507662,123.58,123.56,8.09323405]
[1766747255884,0.68,123.58,123.56,8.09323405]
[1766747261679,2.17507662,123.62,123.58,0.71]
[1766747262004,0.68,123.62,123.59,0.71]
[1766747262704,0.68,123.62,123.59,8.80107153]
[1766747263287,0.72,123.62,123.59,10.97614815]
[1766747263494,0.72,123.62,123.59,10.26614815]
[1766747269306,0.72,123.62,123.6,2.17507662]
[1766747269806,0.7,123.64,123.61,2.17507662]
[1766747270120,0.7,123.64,123.62,2.17507662]
[1766747270299,0.7,123.64,123.61,63.67507662]
[1766747271022,0.7,123.63,123.61,63.67507662]
[1766747271191,2.17507662,123.64,123.61,64.35507662]
[1766747271389,2.87507662,123.64,123.61,64.35507662]
[1766747271793,0.7,123.63,123.61,64.35507662]
[1766747272002,2.87507662,123.64,123.61,64.35507662]
[1766747272198,0.7,123.63,123.61,63.67507662]
[1766747273628,0.7,123.63,123.61,2.17507662]
[1766747275920,0.7,123.63,123.61,3.39466759]
[1766747278730,0.7,123.63,123.6,73.66527438]
[1766747279423,0.7,123.63,123.6,70.27060679]
[1766747279615,0.7,123.63,123.6,12.16527438]
[1766747281725,0.7,123.63,123.61,3.39466759]
[1766747282423,0.7,123.63,123.6,3.39466759]
[1766747282634,0.7,123.63,123.59,84.10339509]
[1766747283026,0.7,123.63,123.6,3.39466759]
[1766747287930,0.7,123.63,123.61,3.39466759]
[1766747293351,0.7,123.63,123.59,11.11767296]
[1766747293352,0.7,123.62,123.59,24.95001351]
[1766747293562,0.7,123.62,123.58,64.89466759]
[1766747293863,0.7,123.62,123.58,3.39466759]
[1766747297371,0.7,123.62,123.59,3.39466759]
[1766747300356,0.7,123.62,123.6,3.39466759]
[1766747300769,0.7,123.62,123.59,8.77117485]
[1766747300976,14.76,123.63,123.59,8.77117485]
[1766747300977,0.71,123.64,123.61,4.07466759]
[1766747301176,0.71,123.64,123.62,3.39466759]
[1766747301177,0.71,123.63,123.62,3.39466759]
[1766747304575,14.76,123.64,123.62,3.39466759]
[1766747305580,14.76,123.64,123.63,3.39466759]
[1766747306771,15.47,123.64,123.63,3.39466759]
[1766747306981,14.76,123.64,123.63,3.39466759]
[1766747307964,14.76,123.64,123.62,3.39466759]
[1766747312383,14.76,123.64,123.61,3.39466759]
[1766747315383,14.76,123.64,123.62,3.39466759]
[1766747322690,8.08740297,123.65,123.63,3.39466759]
[1766747326208,0.2,123.66,123.64,3.39466759]
[1766747326378,0.2,123.66,123.61,20.22419933]
[1766747326703,8.28689036,123.66,123.62,3.39466759]
[1766747326907,8.28689036,123.66,123.63,3.39466759]
[1766747327809,8.28689036,123.66,123.62,3.39466759]
[1766747333108,0.2,123.66,123.62,11.48372289]
[1766747334731,8.28677806,123.66,123.6,42.80302683]
[1766747334907,11.68144565,123.66,123.6,28.59234055]
[1766747336325,11.68144565,123.66,123.61,8.08977181]
[1766747338136,10.4595895,123.66,123.61,8.08977181]
[1766747343042,25.2195895,123.66,123.61,8.08977181]
[1766747344347,25.2195895,123.66,123.6,35.46082193]
[1766747345071,2.17281144,123.65,123.6,12.6104844]
[1766747345242,43.26350133,123.66,123.58,18.52931488]
[1766747345243,2.17281144,123.63,123.58,18.52931488]
[1766747345439,2.17281144,123.64,123.58,18.52931488]
[1766747345853,2.17281144,123.64,123.58,20.70212632]
[1766747346059,2.17281144,123.63,123.58,20.70212632]
[1766747346263,10.2614905,123.63,123.58,20.70212632]
[1766747348146,2.17281144,123.63,123.58,20.70212632]
[1766747348359,2.17281144,123.64,123.58,20.70212632]
[1766747349346,2.17281144,123.64,123.59,2.17281144]
[1766747351370,28.30631764,123.65,123.59,2.17281144]
[1766747351544,7.62606035,123.64,123.59,2.17281144]
[1766747351862,2.17281144,123.64,123.59,2.17281144]
[1766747353465,10.2613257,123.64,123.58,20.70212632]
[1766747354865,10.2613257,123.64,123.6,1.0]
[1766747360068,24.4787197,123.66,123.6,9.09046297]
[1766747360267,0.2,123.66,123.62,2.17281144]
[1766747360773,0.2,123.66,123.61,2.17281144]
[1766747360972,0.2,123.66,123.62,2.17281144]
[1766747364479,0.2,123.66,123.61,8.08959276]
[1766747364772,10.45982604,123.66,123.61,2.17281144]
[1766747369075,10.45982604,123.66,123.6,23.85037503]
[1766747369255,10.45982604,123.66,123.61,2.17281144]
[1766747374292,10.45982604,123.66,123.61,10.2626947]
[1766747378977,8.2870146,123.66,123.61,10.2626947]
[1766747381294,8.2870146,123.66,123.6,1.0]
[1766747381295,2.17281144,123.65,123.6,1.0]
[1766747381500,2.17281144,123.65,123.6,3.17281144]
[1766747383401,8.08799741,123.64,123.6,1.0]
[1766747383610,8.08799741,123.64,123.6,3.17281144]
[1766747383811,7.08799741,123.64,123.6,2.17281144]
[1766747384498,8.08747635,123.65,123.6,10.26311586]
[1766747385910,8.08747635,123.65,123.61,2.17281144]
[1766747386111,10.4596214,123.66,123.61,2.17281144]
[1766747387006,0.2,123.66,123.64,2.17281144]
[1766747387205,0.2,123.66,123.63,2.17281144]
[1766747387412,0.2,123.66,123.62,2.17281144]
[1766747387793,0.2,123.66,123.62,10.26210263]
[1766747390207,2.37281144,123.66,123.62,8.08929119]
[1766747394213,2.17281144,123.64,123.59,10.26352444]
[1766747394518,2.17281144,123.64,123.59,20.70159151]
[1766747395715,2.17281144,123.64,123.6,10.26316701]
[1766747397220,2.17281144,123.64,123.6,8.09035557]
[1766747397604,10.26099672,123.64,123.59,20.70159879]
[1766747398006,11.48383823,123.64,123.59,18.52878735]
[1766747398198,11.48383823,123.64,123.59,21.9244403]
[1766747399925,35.17672327,123.66,123.59,21.9244403]
[1766747399926,3.39565295,123.62,123.59,8.09111439]
[1766747400418,3.39565295,123.61,123.56,11.48860708]
[1766747400718,3.39565295,123.61,123.57,8.09253531]
[1766747401307,3.39565295,123.61,123.57,11.48818826]
[1766747404311,3.39565295,123.6,123.56,11.488887]
[1766747408925,3.39565295,123.59,123.55,36.68700923]
[1766747413027,11.48644357,123.6,123.56,3.39565295]
[1766747413534,8.09079062,123.6,123.57,3.39565295]
[1766747414036,11.48644357,123.6,123.56,11.48884369]
[1766747415236,11.48644357,123.6,123.56,3.39565295]
[1766747422652,3.39565295,123.59,123.55,36.68693819]
[1766747424351,3.39565295,123.58,123.55,10.43767296]
[1766747424652,3.39565295,123.57,123.53,36.68834798]
[1766747425549,11.48841915,123.57,123.53,13.83332591]
[1766747425729,11.48841915,123.57,123.53,36.68848658]
[1766747426057,11.48841915,123.57,123.53,26.25081362]
[1766747426554,3.39565295,123.57,123.53,26.25081362]
[1766747430947,11.48825364,123.57,123.53,26.25081362]
[1766747435579,11.48825364,123.57,123.53,18.15565295]
[1766747436479,11.48825364,123.57,123.53,14.76]
[1766747436664,11.48825364,123.57,123.53,18.15565295]
[1766747440972,11.48825364,123.57,123.54,3.39565295]
[1766747443066,11.48825364,123.57,123.53,18.15565295]
[1766747446492,11.48825364,123.57,123.53,14.76]
[1766747446687,11.48825364,123.57,123.53,18.15565295]
[1766747448493,11.48825364,123.57,123.53,14.76]
[1766747448792,11.48825364,123.57,123.53,18.15565295]
[1766747450393,11.48825364,123.57,123.53,14.76]
[1766747450577,11.48825364,123.57,123.53,18.15565295]
[1766747450892,12.17825364,123.57,123.54,0.67]
[1766747452593,4.08565295,123.57,123.54,0.67]
[1766747452801,8.09216974,123.58,123.57,0.67]
[1766747452993,0.69,123.59,123.57,0.67]
[1766747453898,8.09097548,123.6,123.57,3.39565295]
[1766747454092,8.09097548,123.6,123.58,0.67]
[1766747454415,8.78005331,123.61,123.58,4.06565295]
[1766747454705,8.78005331,123.61,123.59,0.67]
[1766747458298,8.78005331,123.61,123.56,22.85301555]
[1766747458299,8.08930593,123.62,123.6,4.06565295]
[1766747458506,8.08930593,123.62,123.6,0.67]
[1766747458874,8.77930593,123.62,123.6,0.67]
[1766747459099,8.77930593,123.62,123.59,0.67]
[1766747459414,12.17495888,123.62,123.59,0.67]
[1766747460001,10.95314796,123.62,123.59,0.67]
[1766747460605,2.86384203,123.61,123.58,0.67]
[1766747460794,0.69,123.61,123.58,0.67]
[1766747460996,2.17384203,123.6,123.58,0.67]
[1766747461199,2.86384203,123.61,123.58,0.67]
[1766747463316,2.17384203,123.6,123.58,0.67]
[1766747463617,2.86384203,123.61,123.58,0.67]
[1766747464313,2.17384203,123.59,123.57,0.67]
[1766747464512,2.86384203,123.59,123.56,0.67]
[1766747464696,2.86384203,123.58,123.55,0.67]
[1766747469519,2.86384203,123.58,123.56,0.67]
[1766747469520,0.69,123.58,123.56,0.67]
[1766747472420,10.26559739,123.59,123.56,0.67]
[1766747472624,0.69,123.59,123.57,0.67]
[1766747473122,0.69,123.59,123.56,2.17384203]
[1766747473123,0.69,123.59,123.56,2.84384203]
[1766747473819,0.69,123.59,123.56,2.17384203]
[1766747474022,0.69,123.59,123.57,0.67]
[1766747475424,10.93466257,123.6,123.57,0.67]
[1766747475621,0.67,123.59,123.57,0.67]
[1766747475817,0.67,123.59,123.56,2.84384203]
[1766747476423,2.84384203,123.59,123.56,0.67]
[1766747476930,0.67,123.59,123.56,0.67]
[1766747477231,0.67,123.59,123.56,2.84384203]
[1766747479328,0.67,123.59,123.56,0.67]
[1766747479511,0.67,123.59,123.56,2.84384203]
[1766747485636,2.84384203,123.59,123.56,2.84384203]
[1766747486937,0.67,123.59,123.57,0.67]
[1766747487133,0.67,123.6,123.57,2.17384203]
[1766747487316,0.67,123.6,123.57,2.84384203]
[1766747487516,2.84384203,123.6,123.57,2.84384203]
[1766747487735,0.67,123.6,123.57,2.84384203]
[1766747488034,2.84384203,123.6,123.57,2.84384203]
[1766747488532,2.84384203,123.6,123.57,0.67]
[1766747493341,2.17384203,123.59,123.57,0.67]
[1766747499550,2.17384203,123.58,123.57,0.67]
[1766747501146,2.84384203,123.59,123.57,0.67]
[1766747504952,2.17384203,123.58,123.57,0.67]
[1766747509058,2.17384203,123.58,123.55,8.09360678]
[1766747511172,2.17384203,123.58,123.56,0.68]
[1766747511369,2.17384203,123.57,123.54,61.5]
[1766747512776,2.17384203,123.57,123.54,69.59426239]
[1766747513976,2.17384203,123.57,123.54,8.09426239]
[1766747515162,2.17384203,123.57,123.53,84.35499871]
[1766747515363,2.17384203,123.56,123.53,22.85499871]
[1766747517659,8.09126952,123.59,123.53,22.85499871]
[1766747517860,2.17384203,123.56,123.53,22.85499871]
[1766747519979,3.39959604,123.56,123.53,22.85499871]
[1766747522689,3.39959604,123.55,123.52,80.03330157]
[1766747523492,3.39959604,123.55,123.52,18.53330157]
[1766747523786,28.31944332,123.59,123.52,18.53330157]
[1766747523991,5.4570546,123.58,123.52,18.53330157]
[1766747524187,3.39959604,123.56,123.53,8.0950158]
[1766747524787,3.39959604,123.55,123.52,18.53323941]
[1766747530169,3.39959604,123.56,123.52,18.53323941]
[1766747532605,3.39959604,123.55,123.52,18.53323941]
[1766747535298,8.09299565,123.57,123.52,18.53323941]
[1766747535503,3.39959604,123.53,123.51,76.34665505]
[1766747535698,3.39959604,123.53,123.51,14.84665505]
[1766747536497,3.39959604,123.53,123.51,6.75033145]
[1766747537092,4.06959604,123.53,123.51,6.75033145]
[1766747537296,4.06959604,123.53,123.51,14.84683181]
[1766747539009,4.06959604,123.53,123.51,6.75033145]
[1766747539718,0.67,123.52,123.51,6.75033145]
[1766747541423,0.67,123.52,123.51,14.84684185]
[1766747541715,3.39959604,123.53,123.51,14.84684185]
[1766747542022,4.06959604,123.54,123.51,15.32684185]
[1766747542520,0.67,123.54,123.51,18.72643789]
[1766747548323,0.67,123.52,123.51,5.31033145]
[1766747548631,0.57,123.51,123.5,0.2]
[1766747549127,3.96959604,123.52,123.5,0.2]
[1766747549507,0.57,123.52,123.5,0.2]
[1766747552006,0.57,123.52,123.5,3.59959604]
[1766747555231,0.57,123.52,123.5,0.2]
[1766747555436,0.57,123.52,123.5,3.59959604]
[1766747557511,8.66463591,123.54,123.51,4.05959604]
[1766747557929,8.66463591,123.54,123.51,0.66]
[1766747558225,8.09463591,123.54,123.51,0.66]
[1766747558410,0.57,123.53,123.51,0.66]
[1766747560658,8.66521652,123.53,123.5,0.2]
[1766747560857,12.06481256,123.53,123.5,0.2]
[1766747561055,12.06481256,123.53,123.5,0.86]
[1766747564859,8.66521652,123.53,123.5,4.25959604]
[1766747566061,12.06481256,123.53,123.5,0.86]
[1766747566575,3.39959604,123.52,123.5,0.86]
[1766747566778,12.06547222,123.52,123.5,0.86]
[1766747567360,12.06547222,123.52,123.5,0.2]
[1766747567769,0.37,123.5,123.48,0.2]
[1766747567976,3.76959604,123.49,123.47,0.79]
[1766747568170,3.39959604,123.48,123.47,0.79]
[1766747568371,3.76959604,123.49,123.47,0.1]
[1766747569377,3.39959604,123.49,123.47,0.1]
[1766747569560,11.86807352,123.48,123.46,0.2]
[1766747570381,15.10917063,123.48,123.46,0.2]
[1766747571287,11.86807352,123.48,123.46,0.2]
[1766747571589,15.10917063,123.48,123.46,0.2]
[1766747571762,3.39959604,123.47,123.46,0.2]
[1766747573676,3.39959604,123.47,123.44,0.1]
[1766747577186,11.33957459,123.48,123.44,0.1]
[1766747577388,3.39959604,123.47,123.44,0.1]
[1766747579992,2.17888552,123.47,123.44,0.1]
[1766747580999,2.17888552,123.46,123.44,0.1]
[1766747581288,2.17888552,123.45,123.43,0.2]
[1766747582577,32.4096281,123.47,123.43,0.2]
[1766747582987,2.17888552,123.45,123.43,0.2]
[1766747583589,2.17888552,123.46,123.43,8.3015559]
[1766747583788,26.49105376,123.47,123.43,8.3015559]
[1766747583995,2.17888552,123.47,123.43,8.3015559]
[1766747587809,2.17888552,123.46,123.43,8.3015559]
[1766747594702,2.17888552,123.46,123.43,0.2]
[1766747597109,2.17888552,123.46,123.43,8.30158061]
[1766747597310,2.17888552,123.46,123.43,0.2]
[1766747608218,32.40941553,123.47,123.43,0.2]
[1766747608519,2.17888552,123.46,123.43,0.2]
[1766747610923,2.54888552,123.46,123.43,0.88]
[1766747617251,0.37,123.44,123.43,0.2]
[1766747617542,2.54888552,123.44,123.43,0.2]
[1766747619718,2.54888552,123.44,123.42,11.21767296]
[1766747619917,2.17888552,123.43,123.42,0.78]
[1766747620945,2.54888552,123.44,123.42,0.78]
[1766747624319,2.17888552,123.44,123.42,0.78]
[1766747625955,34.96357859,123.45,123.42,0.78]
[1766747626442,2.17888552,123.44,123.42,0.78]
[1766747629253,2.54888552,123.44,123.42,0.78]
[1766747629552,2.54888552,123.44,123.42,0.1]
[1766747631151,2.54888552,123.43,123.42,0.1]
[1766747631846,2.17888552,123.43,123.42,0.1]
[1766747633551,2.54888552,123.44,123.42,0.81]
[1766747633753,22.10755748,123.46,123.43,0.71]
[1766747633962,20.66755748,123.46,123.44,2.17888552]
[1766747634145,0.37,123.48,123.44,2.17888552]
[1766747634146,0.37,123.48,123.45,0.37]
[1766747635266,0.37,123.48,123.45,8.47037633]
[1766747635438,2.89888552,123.49,123.46,0.37]
[1766747635633,2.17888552,123.49,123.46,0.37]
[1766747635838,2.17888552,123.49,123.45,8.47037633]
[1766747635839,0.72,123.48,123.45,8.47037633]
[1766747636446,0.72,123.48,123.46,0.37]
[1766747637163,0.72,123.48,123.45,8.10037633]
[1766747637466,0.72,123.48,123.45,8.47037633]
[1766747642889,23.65773451,123.49,123.45,8.10037633]
[1766747646799,20.25418188,123.49,123.45,8.10037633]
[1766747646988,0.72,123.48,123.45,8.47037633]
[1766747651805,4.12355263,123.48,123.45,8.47037633]
[1766747654807,0.72,123.48,123.45,8.47037633]
[1766747667821,0.72,123.48,123.45,8.10037633]
[1766747668516,3.40355263,123.48,123.45,8.10037633]
[1766747668822,0.68,123.47,123.44,69.97105118]
[1766747669400,0.68,123.47,123.44,8.47105118]
[1766747671614,0.68,123.47,123.44,8.10105118]
[1766747671819,0.68,123.47,123.45,0.37]
[1766747682845,3.40355263,123.48,123.44,8.10105118]
[1766747683225,3.40355263,123.48,123.45,8.10036179]
[1766747684243,8.09829312,123.49,123.44,8.10110174]
[1766747684447,3.40355263,123.48,123.44,28.35385611]
[1766747684848,4.10355263,123.48,123.44,28.72385611]
[1766747685034,0.7,123.47,123.44,28.72385611]
[1766747685229,47.18134255,123.51,123.44,31.75740874]
[1766747685436,0.7,123.49,123.46,0.37]
[1766747686327,0.7,123.49,123.47,8.09913339]
[1766747701640,0.7,123.48,123.46,69.59955801]
[1766747702864,0.7,123.48,123.46,71.77735298]
[1766747703043,0.7,123.48,123.46,72.14735298]
[1766747705369,0.7,123.48,123.46,69.96955801]
[1766747707169,0.7,123.48,123.46,69.59955801]
[1766747707361,0.7,123.48,123.46,8.09955801]
[1766747726996,2.17779497,123.5,123.46,8.09955801]
[1766747730903,0.66,123.49,123.46,8.46955801]
[1766747734401,0.66,123.49,123.46,8.09955801]
[1766747734606,0.66,123.48,123.45,84.38020692]
[1766747734902,0.66,123.48,123.45,84.75020692]
[1766747736805,0.66,123.48,123.45,23.25020692]
[1766747737302,0.66,123.48,123.45,25.42800189]
[1766747738808,0.66,123.48,123.45,23.25020692]
[1766747740606,0.66,123.48,123.45,25.42800189]
[1766747745001,0.66,123.48,123.45,25.05800189]
[1766747745203,0.66,123.48,123.46,0.37]
[1766747745507,0.66,123.48,123.45,25.42800189]
[1766747746809,0.66,123.48,123.45,23.25020692]
[1766747747309,0.66,123.48,123.45,22.88020692]
[1766747748508,0.66,123.48,123.45,23.25020692]
[1766747752509,0.66,123.48,123.45,22.88020692]
[1766747752715,0.72,123.45,123.42,69.70194381]
[1766747752921,0.72,123.44,123.42,8.20194381]
[1766747753391,0.72,123.44,123.43,18.53943104]
[1766747753595,2.17779497,123.45,123.43,18.53943104]
[1766747754824,2.17779497,123.46,123.43,18.53943104]
[1766747755010,2.17779497,123.47,123.43,18.53943104]
[1766747755419,2.17779497,123.47,123.43,8.10175808]
[1766747755626,0.72,123.46,123.43,8.10175808]
[1766747756133,0.72,123.46,123.43,25.72955305]
[1766747756302,2.17779497,123.48,123.44,0.67]
[1766747756707,2.17779497,123.48,123.43,25.72955305]
[1766747757032,2.17779497,123.48,123.43,45.98394825]
[1766747758249,0.72,123.47,123.43,45.98394825]
[1766747758843,0.72,123.47,123.44,0.67]
[1766747760139,0.72,123.47,123.44,8.77055241]
[1766747762039,2.17779497,123.47,123.44,8.77055241]
[1766747762219,0.72,123.46,123.44,8.77055241]
[1766747762833,2.17779497,123.47,123.44,8.10055241]
[1766747764039,3.40432119,123.46,123.43,84.38157279]
[1766747766044,3.40432119,123.46,123.43,22.88157279]
[1766747767737,3.40432119,123.45,123.43,14.78]
[1766747767928,3.40432119,123.45,123.42,61.6]
[1766747767929,3.40432119,123.45,123.42,69.70239507]
[1766747768942,3.40432119,123.43,123.42,0.1]
[1766747769250,3.40432119,123.44,123.42,0.1]
[1766747770342,3.40432119,123.45,123.42,0.1]
[1766747772425,28.34837857,123.46,123.42,0.1]
[1766747772627,3.40432119,123.45,123.42,0.1]
[1766747773246,3.40432119,123.44,123.42,0.1]